bitfinex/quotes_BTCUSD_20241130
["timestamp","ask_amount","ask_price","bid_price","bid_amount"]
[1732926914727,0.46599636,97235.0,97234.0,0.0020454]
[1732926914942,0.45642707,97235.0,97234.0,0.0020454]
[1732926915155,0.55927228,97235.0,97234.0,0.0020454]
[1732926915391,0.56882013,97235.0,97234.0,0.0020454]
[1732926918976,1.26882013,97235.0,97234.0,0.0020454]
[1732926919183,1.28411106,97235.0,97234.0,0.0020454]
[1732926919390,0.58411106,97235.0,97234.0,0.0020454]
[1732926919593,0.56882013,97235.0,97234.0,0.0020454]
[1732926922014,0.56882013,97235.0,97211.0,0.0002]
[1732926922015,0.39850407,97231.0,97211.0,0.0002]
[1732926922212,0.53389713,97231.0,97230.0,0.00146634]
[1732926922434,1.23389713,97231.0,97230.0,0.00146634]
[1732926922641,1.24918806,97231.0,97230.0,0.00146634]
[1732926923289,1.25618806,97231.0,97230.0,0.00146634]
[1732926925740,0.45334285,97231.0,97230.0,0.00146634]
[1732926925970,0.40505192,97231.0,97230.0,0.00146634]
[1732926926197,0.41505192,97231.0,97230.0,0.00146634]
[1732926926416,0.40505192,97231.0,97230.0,0.00146634]
[1732926926637,0.5048134,97231.0,97230.0,0.00146634]
[1732926926851,0.60765861,97231.0,97230.0,0.00146634]
[1732926927299,0.102867,97212.0,97211.0,0.0002]
[1732926927505,0.1146909,97212.0,97211.0,0.0002]
[1732926928842,0.1146909,97212.0,97211.0,0.0042]
[1732926929281,0.1146909,97212.0,97211.0,0.0082]
[1732926929940,0.1146909,97212.0,97211.0,0.0042]
[1732926930146,0.1146909,97212.0,97211.0,0.0012]
[1732926930388,0.1156909,97212.0,97211.0,0.0012]
[1732926931728,0.11915144,97212.0,97211.0,0.0012]
[1732926931937,0.11915144,97212.0,97211.0,0.0002]
[1732926932146,0.11918542,97212.0,97211.0,0.0002]
[1732926932358,0.11818542,97212.0,97211.0,0.0012]
[1732926932795,0.11818542,97212.0,97211.0,0.0002]
[1732926933014,0.10860359,97212.0,97211.0,0.0022]
[1732926933219,0.11818631,97212.0,97211.0,0.0032]
[1732926933654,0.11918631,97212.0,97211.0,0.0012]
[1732926933874,0.11918631,97212.0,97211.0,0.0022]
[1732926934061,0.11818631,97212.0,97211.0,0.0012]
[1732926934271,0.12218631,97212.0,97211.0,0.0012]
[1732926935169,0.12218631,97212.0,97211.0,0.0002]
[1732926935597,0.11818631,97212.0,97211.0,0.0002]
[1732926935813,0.12218631,97212.0,97211.0,0.0002]
[1732926936031,0.11991026,97212.0,97211.0,0.0002]
[1732926936503,0.11691026,97212.0,97211.0,0.0002]
[1732926936935,0.11991026,97212.0,97211.0,0.0010662]
[1732926937168,0.11591026,97212.0,97211.0,0.0010662]
[1732926937642,0.11991026,97212.0,97211.0,0.0010662]
[1732926938852,0.01704326,97212.0,97211.0,0.0764662]
[1732926939059,0.01704326,97212.0,97211.0,0.28318041]
[1732926939294,0.01704326,97212.0,97211.0,0.28417431]
[1732926939513,0.01304326,97212.0,97211.0,0.28317431]
[1732926939725,0.01504326,97212.0,97211.0,0.18030531]
[1732926940208,0.00958272,97212.0,97211.0,0.18030531]
[1732926940416,0.00958272,97212.0,97211.0,0.18530531]
[1732926940417,0.01357656,97212.0,97211.0,0.18530531]
[1732926940850,0.01357656,97212.0,97211.0,0.28817431]
[1732926941075,0.00960146,97212.0,97211.0,0.28817431]
[1732926941316,0.01359614,97212.0,97211.0,0.28817431]
[1732926941541,0.01359614,97212.0,97211.0,0.18530531]
[1732926941755,0.01359614,97212.0,97211.0,0.18930531]
[1732926942408,0.00399468,97212.0,97211.0,0.29217431]
[1732926942623,0.00399468,97212.0,97211.0,0.18930531]
[1732926942858,0.102862,97217.0,97211.0,0.29217331]
[1732926943135,0.00959599,97216.0,97212.0,0.20571221]
[1732926943362,0.00959599,97215.0,97214.0,0.102864]
[1732926943606,0.00959599,97215.0,97214.0,0.10284521]
[1732926943844,0.01359426,97215.0,97214.0,0.10284521]
[1732926944066,0.00959599,97215.0,97214.0,0.10284521]
[1732926944294,0.01359412,97215.0,97214.0,0.10284521]
[1732926944526,0.00399813,97215.0,97214.0,0.10284521]
[1732926945385,0.10286,97219.0,97214.0,0.10284521]
[1732926945617,0.00399795,97215.0,97212.0,0.003]
[1732926945835,0.00399795,97215.0,97214.0,0.106865]
[1732926946043,0.0017324,97230.0,97214.0,0.106865]
[1732926946044,0.102853,97227.0,97215.0,0.0796]
[1732926946258,0.21529727,97226.0,97219.0,0.0009814]
[1732926946696,0.102857,97223.0,97219.0,0.0009814]
[1732926946945,0.0017324,97230.0,97220.0,0.10284521]
[1732926947162,0.102858,97221.0,97220.0,0.10284521]
[1732926947372,0.205714,97223.0,97219.0,0.0009814]
[1732926947373,0.102859,97220.0,97219.0,0.0009814]
[1732926948524,0.102859,97220.0,97219.0,0.0029814]
[1732926948729,0.10686047,97220.0,97219.0,0.0029814]
[1732926949360,0.10686047,97220.0,97219.0,0.0039814]
[1732926950211,0.19451754,97220.0,97219.0,0.002]
[1732926950422,0.26257745,97220.0,97219.0,0.002]
[1732926950630,0.26030166,97220.0,97219.0,0.001]
[1732926951044,0.26030166,97220.0,97219.0,0.003]
[1732926951484,0.26030166,97220.0,97219.0,0.001]
[1732926951900,0.102867,97212.0,97211.0,0.0010662]
[1732926952136,0.11245112,97212.0,97211.0,0.0010662]
[1732926952343,0.116452,97212.0,97211.0,0.0010662]
[1732926953465,0.119452,97212.0,97211.0,0.0010662]
[1732926954949,0.165652,97212.0,97211.0,0.0010662]
[1732926955134,0.16792808,97212.0,97211.0,0.0010662]
[1732926957928,0.17904964,97212.0,97211.0,0.0010662]
[1732926958397,0.87904964,97212.0,97211.0,0.0010662]
[1732926958624,0.87677356,97212.0,97211.0,0.0010662]
[1732926959965,0.17677356,97212.0,97211.0,0.0010662]
[1732926960248,0.17904965,97212.0,97211.0,0.0010662]
[1732926960663,0.17904851,97212.0,97211.0,0.0010662]
[1732926960875,0.13284851,97212.0,97211.0,0.0010662]
[1732926963100,0.13284818,97212.0,97211.0,0.0010662]
[1732926966214,0.13284871,97212.0,97211.0,0.0010662]
[1732926968574,0.10986788,97212.0,97211.0,0.0010662]
[1732926969552,0.10686788,97212.0,97211.0,0.0010662]
[1732926970039,0.00400088,97212.0,97211.0,0.0020662]
[1732926970279,0.00400088,97212.0,97211.0,0.25508041]
[1732926970537,0.02050009,97225.0,97211.0,0.15221141]
[1732926970538,0.00958318,97224.0,97211.0,0.15221141]
[1732926970786,0.00958318,97229.0,97218.0,0.0009876]
[1732926971055,0.10286,97219.0,97218.0,0.0009876]
[1732926971297,0.10286,97219.0,97218.0,0.02024638]
[1732926971803,0.08181872,97230.0,97218.0,0.02024638]
[1732926971804,0.00958318,97226.0,97218.0,0.12309159]
[1732926972038,0.00958318,97226.0,97225.0,0.102854]
[1732926972284,0.0017324,97230.0,97225.0,0.102854]
[1732926972285,0.0017324,97230.0,97226.0,0.102852]
[1732926972531,0.0017324,97230.0,97222.0,0.20662681]
[1732926972532,0.1045814,97230.0,97227.0,0.12210399]
[1732926972775,0.0017324,97230.0,97227.0,0.12210399]
[1732926973011,0.0017324,97230.0,97228.0,0.01925878]
[1732926973239,0.0017324,97230.0,97229.0,0.33826714]
[1732926973467,0.0017324,97230.0,97229.0,0.33735459]
[1732926974557,0.0037324,97230.0,97229.0,0.33735459]
[1732926974774,0.0037324,97230.0,97229.0,0.34235459]
[1732926974945,0.0037324,97230.0,97229.0,0.23950559]
[1732926975163,0.1075804,97230.0,97229.0,0.24650559]
[1732926975382,0.0017324,97230.0,97229.0,0.23950559]
[1732926975824,0.1055804,97230.0,97229.0,0.24742332]
[1732926976040,0.1055804,97230.0,97229.0,0.16082332]
[1732926976294,0.1055804,97230.0,97229.0,0.03221244]
[1732926976521,0.1055804,97230.0,97229.0,0.012]
[1732926976732,0.1055804,97230.0,97229.0,0.007]
[1732926977167,0.1055804,97230.0,97229.0,0.011]
[1732926977628,0.102858,97221.0,97215.0,0.00091324]
[1732926977842,0.205704,97227.0,97216.0,0.12207671]
[1732926978091,0.1055804,97230.0,97229.0,0.001]
[1732926978278,0.1045804,97230.0,97229.0,0.001]
[1732926978490,0.10859908,97230.0,97229.0,0.001]
[1732926979145,0.10859908,97230.0,97229.0,0.02023006]
[1732926979363,0.10859908,97230.0,97229.0,0.01923006]
[1732926980463,0.10859908,97230.0,97229.0,0.02023006]
[1732926981641,0.10859908,97230.0,97229.0,0.12307527]
[1732926981642,0.00575108,97230.0,97229.0,0.12307527]
[1732926982300,0.00575108,97230.0,97229.0,0.12206992]
[1732926982531,0.00575108,97230.0,97229.0,0.22491892]
[1732926982761,0.00575108,97230.0,97229.0,0.25567846]
[1732926982985,0.00575108,97230.0,97229.0,0.33727846]
[1732926983212,0.0017324,97230.0,97229.0,0.33827846]
[1732926984080,0.0017324,97230.0,97229.0,0.33914406]
[1732926988036,0.0017324,97230.0,97229.0,0.38554406]
[1732926988263,0.0017324,97230.0,97229.0,0.55854406]
[1732926988482,0.0027324,97230.0,97229.0,0.56554406]
[1732926988707,0.0027324,97230.0,97229.0,0.57054406]
[1732926991473,0.0017324,97230.0,97229.0,0.55754406]
[1732926991697,0.0027324,97230.0,97229.0,0.56654406]
[1732926991924,0.0027324,97230.0,97229.0,0.56154406]
[1732926992403,0.0037324,97230.0,97229.0,0.56654406]
[1732926992903,0.0037324,97230.0,97229.0,0.57454406]
[1732926993164,0.0037324,97230.0,97229.0,0.16269506]
[1732926993381,0.0037324,97230.0,97229.0,0.16259616]
[1732926993607,0.0037324,97230.0,97229.0,0.12071081]
[1732926993838,0.0037324,97230.0,97229.0,0.11171081]
[1732926993839,0.0017324,97230.0,97229.0,0.11171081]
[1732926994074,0.0017324,97230.0,97229.0,0.12162335]
[1732926994309,0.00583941,97230.0,97229.0,0.11262335]
[1732926994535,0.00583941,97230.0,97229.0,0.11862335]
[1732926994775,0.00583941,97230.0,97229.0,0.11062335]
[1732926995206,0.00583941,97230.0,97229.0,0.11471081]
[1732926995446,0.10868741,97230.0,97229.0,0.11471081]
[1732926996359,0.10868741,97230.0,97229.0,0.16460872]
[1732926998000,0.10868741,97230.0,97229.0,0.11471081]
[1732926998230,0.10868741,97230.0,97229.0,0.13391962]
[1732926998487,0.10868741,97230.0,97229.0,0.03107441]
[1732926999197,0.10868741,97230.0,97229.0,0.0118656]
[1732926999663,0.10868741,97230.0,97229.0,0.0068656]
[1732927000134,0.10868741,97230.0,97229.0,0.0008656]
[1732927000360,0.11268741,97230.0,97229.0,0.0008656]
[1732927000584,0.11368741,97230.0,97229.0,0.0008656]
[1732927002491,0.11268741,97230.0,97229.0,0.0008656]
[1732927002737,0.11268741,97230.0,97229.0,0.10371081]
[1732927002962,0.11368741,97230.0,97229.0,0.10371081]
[1732927003184,0.10968741,97230.0,97229.0,0.10371081]
[1732927003406,0.11268741,97230.0,97229.0,0.10371081]
[1732927003630,0.00983941,97230.0,97229.0,0.10371081]
[1732927003874,0.11268741,97230.0,97229.0,0.10371081]
[1732927004102,0.11368741,97230.0,97229.0,0.10371081]
[1732927005735,0.01083941,97230.0,97229.0,0.10371081]
[1732927005963,0.01083941,97230.0,97229.0,0.20947245]
[1732927006454,0.0017324,97230.0,97229.0,0.28327245]
[1732927006677,0.00706222,97230.0,97229.0,0.17951081]
[1732927006908,0.0017324,97230.0,97229.0,0.28727247]
[1732927007135,0.00606222,97230.0,97229.0,0.28635981]
[1732927007367,0.00606222,97230.0,97229.0,0.11271081]
[1732927007826,0.00706222,97230.0,97229.0,0.22155981]
[1732927008067,0.00606222,97230.0,97229.0,0.20655981]
[1732927008296,0.00606222,97230.0,97229.0,0.21055981]
[1732927008579,0.00606222,97230.0,97229.0,0.21455981]
[1732927008811,0.00606222,97230.0,97229.0,0.21055981]
[1732927009041,0.0017324,97230.0,97229.0,0.21547232]
[1732927009268,0.0017324,97230.0,97229.0,0.21455981]
[1732927009714,0.0017324,97230.0,97229.0,0.20655981]
[1732927009961,0.0017324,97230.0,97229.0,0.20947243]
[1732927010192,0.0017324,97230.0,97229.0,0.21047243]
[1732927010652,0.0017324,97230.0,97229.0,0.21447243]
[1732927010843,0.0017324,97230.0,97229.0,0.21047243]
[1732927011099,0.0027324,97230.0,97229.0,0.21647243]
[1732927011331,0.0027324,97230.0,97229.0,0.28835981]
[1732927011579,0.0027324,97230.0,97229.0,0.29235981]
[1732927012087,0.0027324,97230.0,97229.0,0.28835981]
[1732927012321,0.0027324,97230.0,97229.0,0.29535981]
[1732927012748,0.0017324,97230.0,97229.0,0.28935981]
[1732927012871,0.0027324,97230.0,97229.0,0.29835981]
[1732927013381,0.0027324,97230.0,97229.0,0.28935981]
[1732927013591,0.0037324,97230.0,97229.0,0.29835981]
[1732927021594,0.00059679,97231.0,97229.0,0.29835981]
[1732927021595,0.00059679,97231.0,97230.0,0.0043326]
[1732927021813,0.00059679,97231.0,97230.0,0.21093798]
[1732927022907,0.00059679,97231.0,97230.0,0.21793798]
[1732927023138,0.00159679,97231.0,97230.0,0.22602581]
[1732927025425,0.00159679,97231.0,97230.0,0.24902581]
[1732927025880,0.0017322,97235.0,97230.0,0.24902581]
[1732927026096,0.0017322,97235.0,97234.0,0.20668761]
[1732927026323,0.0017322,97235.0,97234.0,0.20759928]
[1732927027175,0.0017322,97235.0,97234.0,0.21659928]
[1732927027435,0.0017322,97235.0,97234.0,0.21568761]
[1732927028163,0.0017322,97235.0,97234.0,0.23868761]
[1732927029303,0.0017322,97235.0,97234.0,0.24468761]
[1732927034186,0.15995707,97281.0,97234.0,0.24468761]
[1732927034187,0.1267,97276.0,97267.0,0.102809]
[1732927034447,0.1267,97276.0,97267.0,0.20755199]
[1732927034911,0.0458,97276.0,97267.0,0.20755199]
[1732927035364,0.0097316,97268.0,97267.0,0.20855199]
[1732927035595,0.00979128,97268.0,97267.0,0.20855199]
[1732927035824,0.00979128,97268.0,97267.0,0.20755199]
[1732927036067,0.00979128,97268.0,97267.0,0.21555199]
[1732927036292,0.00479128,97268.0,97267.0,0.20664111]
[1732927036537,0.00479128,97268.0,97267.0,0.21655171]
[1732927036787,0.00179128,97268.0,97267.0,0.21564111]
[1732927037031,0.00179128,97268.0,97267.0,0.23059787]
[1732927037501,0.00179128,97268.0,97267.0,0.11283211]
[1732927037723,0.08814831,97268.0,97267.0,0.11283211]
[1732927037961,0.19095631,97268.0,97267.0,0.11783211]
[1732927038398,0.24675631,97268.0,97267.0,0.0149869]
[1732927038645,0.24675631,97268.0,97267.0,0.014]
[1732927038907,0.24675631,97268.0,97267.0,0.005]
[1732927039156,0.24675631,97268.0,97267.0,0.007]
[1732927039862,0.24775631,97268.0,97267.0,0.002]
[1732927040078,0.24775631,97268.0,97267.0,0.003]
[1732927040288,0.25771338,97268.0,97267.0,0.003]
[1732927040499,0.10282,97257.0,97256.0,0.0009923]
[1732927040728,0.23727505,97257.0,97256.0,0.0009923]
[1732927040963,0.23727505,97257.0,97239.0,0.00091201]
[1732927040964,0.102832,97246.0,97239.0,0.10375001]
[1732927041186,0.102832,97246.0,97240.0,0.10284521]
[1732927041390,0.00547909,97245.0,97240.0,0.10284521]
[1732927041629,0.00547909,97245.0,97240.0,0.10375735]
[1732927041955,0.1267,97257.0,97240.0,0.20659435]
[1732927041956,0.00547901,97244.0,97240.0,0.20659435]
[1732927042163,0.1267,97257.0,97240.0,0.10284521]
[1732927042358,0.00547893,97243.0,97241.0,0.00091203]
[1732927042561,0.207917,97256.0,97235.0,0.0008656]
[1732927042562,0.102833,97245.0,97242.0,0.10375725]
[1732927042842,0.102834,97244.0,97242.0,0.10284521]
[1732927043044,0.102835,97243.0,97242.0,0.10284521]
[1732927043483,0.10831006,97243.0,97242.0,0.10284521]
[1732927043931,0.10831006,97243.0,97242.0,0.11184521]
[1732927044540,0.10831006,97243.0,97242.0,0.10884521]
[1732927044738,0.10831006,97243.0,97242.0,0.11184521]
[1732927045170,0.10831006,97243.0,97242.0,0.10584521]
[1732927045424,0.10831006,97243.0,97242.0,0.11084521]
[1732927045824,0.10831006,97243.0,97242.0,0.10584521]
[1732927046079,0.00547506,97243.0,97242.0,0.11084521]
[1732927046326,0.10831006,97243.0,97242.0,0.11084521]
[1732927046925,0.00547506,97243.0,97242.0,0.11084521]
[1732927047136,0.205657,97249.0,97242.0,0.11084521]
[1732927047363,0.102835,97243.0,97242.0,0.11084521]
[1732927047805,0.10831006,97243.0,97242.0,0.11084521]
[1732927048017,0.00547506,97243.0,97242.0,0.10784521]
[1732927048249,0.10831006,97243.0,97242.0,0.10784521]
[1732927048455,0.102835,97243.0,97242.0,0.10784521]
[1732927048679,0.10831006,97243.0,97242.0,0.10784521]
[1732927049338,0.10831006,97243.0,97242.0,0.10884521]
[1732927049782,0.10831006,97243.0,97242.0,0.10784521]
[1732927049999,0.10831006,97243.0,97242.0,0.11084521]
[1732927051380,0.00547506,97243.0,97242.0,0.11084521]
[1732927051634,0.10831006,97243.0,97242.0,0.11084521]
[1732927051873,0.102835,97243.0,97242.0,0.11084521]
[1732927052105,0.00547506,97243.0,97242.0,0.11084521]
[1732927052334,0.10831006,97243.0,97242.0,0.11084521]
[1732927055901,0.00547506,97243.0,97242.0,0.11084521]
[1732927056370,0.102835,97243.0,97242.0,0.11084521]
[1732927056580,0.10831006,97243.0,97242.0,0.11084521]
[1732927059080,0.00547506,97243.0,97242.0,0.11084521]
[1732927059290,0.10831006,97243.0,97242.0,0.11084521]
[1732927059500,0.102835,97243.0,97242.0,0.11084521]
[1732927059726,0.10843421,97243.0,97242.0,0.11084521]
[1732927060140,0.10843421,97243.0,97242.0,0.13006402]
[1732927060625,0.10843421,97243.0,97242.0,0.11084521]
[1732927061923,0.15813421,97243.0,97242.0,0.11084521]
[1732927062150,0.24083421,97243.0,97242.0,0.11084521]
[1732927063898,0.24083421,97243.0,97242.0,0.008]
[1732927064401,0.24083421,97243.0,97242.0,0.0088653]
[1732927070968,0.15813421,97243.0,97242.0,0.11171051]
[1732927071669,0.10843421,97243.0,97242.0,0.11171051]
[1732927071899,0.00559921,97243.0,97242.0,0.11171051]
[1732927072538,0.102835,97243.0,97242.0,0.11171051]
[1732927072990,0.0055613,97243.0,97242.0,0.11171051]
[1732927073446,0.102833,97245.0,97242.0,0.11171051]
[1732927073704,0.01,97252.0,97242.0,0.11171051]
[1732927073705,0.0497,97251.0,97243.0,0.10284521]
[1732927073948,0.10283,97248.0,97243.0,0.10284521]
[1732927074214,0.0497,97251.0,97244.0,0.102833]
[1732927074449,0.0497,97251.0,97242.0,0.0088653]
[1732927074450,0.10283,97248.0,97245.0,0.10284521]
[1732927074680,0.102829,97249.0,97245.0,0.10284521]
[1732927074910,0.10283,97248.0,97245.0,0.10284521]
[1732927075149,0.102828,97250.0,97245.0,0.20567721]
[1732927075425,0.10283,97248.0,97245.0,0.10284521]
[1732927075650,0.205657,97249.0,97245.0,0.10284521]
[1732927075886,0.102831,97247.0,97245.0,0.10284521]
[1732927076119,0.10283,97248.0,97245.0,0.10284521]
[1732927076349,0.10283,97248.0,97245.0,0.10384521]
[1732927076576,0.102831,97247.0,97245.0,0.10384521]
[1732927076809,0.102831,97247.0,97245.0,0.10684521]
[1732927077031,0.102831,97247.0,97245.0,0.10584521]
[1732927077175,0.102831,97247.0,97245.0,0.10784521]
[1732927077623,0.0497,97251.0,97245.0,0.10784521]
[1732927077853,0.10283,97248.0,97247.0,0.0009823]
[1732927078030,0.10283,97248.0,97247.0,0.10382751]
[1732927078244,0.10281,97266.0,97260.0,0.102816]
[1732927078468,0.00179128,97268.0,97261.0,0.10284521]
[1732927078676,0.102814,97263.0,97261.0,0.10284521]
[1732927078900,0.00179128,97268.0,97261.0,0.10284521]
[1732927079570,0.102813,97264.0,97261.0,0.10584521]
[1732927079796,0.10460028,97268.0,97261.0,0.10584521]
[1732927080091,0.00179128,97268.0,97266.0,0.10281]
[1732927080328,0.00179128,97268.0,97266.0,0.10284521]
[1732927080787,0.00179128,97268.0,97266.0,0.20565521]
[1732927081755,0.1045396,97267.0,97266.0,0.10284521]
[1732927081984,0.24608941,97267.0,97266.0,0.10284521]
[1732927082672,0.24608941,97267.0,97266.0,0.10684521]
[1732927083128,0.24608941,97267.0,97266.0,0.004]
[1732927085211,0.102816,97261.0,97260.0,0.0009906]
[1732927085434,0.102816,97261.0,97260.0,0.10383581]
[1732927085644,0.11406646,97261.0,97260.0,0.10383581]
[1732927086522,0.11406646,97261.0,97260.0,0.10583581]
[1732927086741,0.11406646,97261.0,97260.0,0.10683581]
[1732927088291,0.01125046,97261.0,97260.0,0.10683581]
[1732927088529,0.3376516,97267.0,97260.0,0.10683581]
[1732927088530,0.1320306,97267.0,97261.0,0.205632]
[1732927088758,0.11406226,97266.0,97262.0,0.10284521]
[1732927089026,0.01125126,97266.0,97265.0,0.102811]
[1732927089274,0.01125126,97266.0,97265.0,0.20565621]
[1732927089473,0.0017306,97267.0,97266.0,0.10281]
[1732927089691,0.0017306,97267.0,97266.0,0.20565521]
[1732927090153,0.01298025,97267.0,97266.0,0.10284521]
[1732927090819,0.01298025,97267.0,97266.0,0.20565521]
[1732927091035,0.01298025,97267.0,97266.0,0.10284521]
[1732927091259,0.1507396,97267.0,97266.0,0.10284521]
[1732927091518,0.24269268,97267.0,97266.0,0.10284521]
[1732927092206,0.24269268,97267.0,97266.0,0.11084521]
[1732927092879,0.24269268,97267.0,97266.0,0.10784521]
[1732927096758,0.05918368,97267.0,97266.0,0.10784521]
[1732927097024,0.01298368,97267.0,97266.0,0.10784521]
[1732927097728,0.01298368,97267.0,97266.0,0.10284521]
[1732927097998,0.11579268,97267.0,97266.0,0.10284521]
[1732927098456,0.11579268,97267.0,97266.0,0.10584521]
[1732927098673,0.10281,97266.0,97265.0,0.0008653]
[1732927098897,0.10281,97266.0,97265.0,0.10371051]
[1732927099174,0.16026406,97266.0,97265.0,0.10371051]
[1732927099857,0.16026406,97266.0,97265.0,0.0018653]
[1732927100550,0.16026406,97266.0,97265.0,0.0008653]
[1732927101040,0.1625388,97266.0,97265.0,0.0008653]
[1732927101288,0.41092113,97266.0,97265.0,0.0018653]
[1732927101553,0.42048519,97266.0,97265.0,0.0018653]
[1732927101989,0.43119519,97266.0,97265.0,0.0008653]
[1732927102436,0.23973,97247.0,97246.0,0.0009937]
[1732927102655,0.1369,97247.0,97235.0,0.0008656]
[1732927102874,0.102835,97243.0,97235.0,0.0008656]
[1732927103164,0.12506738,97243.0,97235.0,0.0008656]
[1732927103406,0.13619208,97243.0,97235.0,0.0008656]
[1732927104332,0.13619208,97243.0,97242.0,0.0058653]
[1732927104560,0.13619208,97243.0,97242.0,0.0008653]
[1732927105041,0.13619208,97243.0,97242.0,0.0018653]
[1732927105255,0.33499208,97243.0,97242.0,0.0028653]
[1732927105472,0.40891677,97243.0,97242.0,0.0028653]
[1732927105955,0.41991913,97243.0,97242.0,0.0018653]
[1732927106406,0.42091913,97243.0,97242.0,0.0018653]
[1732927106832,0.41991913,97243.0,97242.0,0.0018653]
[1732927107051,0.41991913,97243.0,97242.0,0.0008653]
[1732927107316,0.42091913,97243.0,97242.0,0.0008653]
[1732927107540,0.41991913,97243.0,97242.0,0.0008653]
[1732927107970,0.42591913,97243.0,97242.0,0.0018653]
[1732927108191,0.42891913,97243.0,97242.0,0.0018653]
[1732927113047,0.42458813,97243.0,97242.0,0.0018653]
[1732927114837,0.42631993,97243.0,97242.0,0.0018653]
[1732927118832,1.12631993,97243.0,97242.0,0.0018653]
[1732927121596,1.26761184,97243.0,97242.0,0.0018653]
[1732927121816,1.23868901,97243.0,97242.0,0.0018653]
[1732927124088,0.53868901,97243.0,97242.0,0.0018653]
[1732927124313,0.52916514,97243.0,97242.0,0.0018653]
[1732927125036,0.52355671,97243.0,97242.0,0.0018653]
[1732927126419,0.53308684,97243.0,97242.0,0.0018653]
[1732927126659,0.52355671,97243.0,97242.0,0.0018653]
[1732927127079,1.22355671,97243.0,97242.0,0.0018653]
[1732927127312,1.23308684,97243.0,97242.0,0.0018653]
[1732927128168,1.23309623,97243.0,97242.0,0.0018653]
[1732927129282,1.32663509,97243.0,97242.0,3e-07]
[1732927129495,1.24309623,97243.0,97242.0,3e-07]
[1732927130425,1.25309623,97243.0,97242.0,3e-07]
[1732927131100,0.66369907,97236.0,97235.0,9e-07]
[1732927131364,1.46654428,97236.0,97235.0,9e-07]
[1732927131628,1.48173807,97236.0,97235.0,9e-07]
[1732927132343,1.58456953,97236.0,97235.0,9e-07]
[1732927132566,1.58856953,97236.0,97235.0,5.4e-07]
[1732927132784,1.48773807,97236.0,97235.0,5.4e-07]
[1732927133512,1.40020932,97236.0,97229.0,0.00082614]
[1732927133779,0.393748,97230.0,97229.0,0.00142293]
[1732927134010,1.22709976,97230.0,97229.0,0.00142293]
[1732927136721,1.21178651,97230.0,97229.0,0.00142293]
[1732927137639,1.21578651,97230.0,97229.0,0.00142293]
[1732927137876,1.22378651,97230.0,97229.0,0.00242293]
[1732927138306,1.24678651,97230.0,97229.0,0.00242293]
[1732927138548,1.26209409,97230.0,97229.0,0.00242293]
[1732927139695,1.24678651,97230.0,97229.0,0.00242293]
[1732927140774,1.26209371,97230.0,97229.0,0.00242293]
[1732927141210,0.56209371,97230.0,97229.0,0.00242293]
[1732927141916,0.56209371,97230.0,97189.0,0.00091349]
[1732927141917,0.173,97229.0,97206.0,0.0009868]
[1732927142118,0.102873,97207.0,97206.0,0.0009868]
[1732927142360,0.10514928,97207.0,97206.0,0.0009868]
[1732927142555,0.102891,97190.0,97189.0,0.10284521]
[1732927143047,0.1085047,97190.0,97189.0,0.10284521]
[1732927143914,0.1085047,97190.0,97189.0,0.10290512]
[1732927145022,0.1095047,97190.0,97189.0,0.10890512]
[1732927145717,0.1105047,97190.0,97189.0,0.11790512]
[1732927148009,0.1105047,97190.0,97189.0,0.01505991]
[1732927149377,0.1122375,97190.0,97189.0,0.01505991]
[1732927152088,0.1122375,97190.0,97189.0,0.00518148]
[1732927152308,0.12451408,97190.0,97189.0,0.00518148]
[1732927153010,0.12451408,97190.0,97188.0,0.0008664]
[1732927153011,0.102892,97189.0,97188.0,0.0008664]
[1732927153247,0.1051686,97189.0,97188.0,0.0008664]
[1732927153494,0.11996576,97189.0,97188.0,0.0008664]
[1732927154869,0.12764623,97189.0,97188.0,0.0008664]
[1732927155359,0.15292296,97189.0,97188.0,0.0008664]
[1732927155565,0.15292296,97189.0,97188.0,0.0038664]
[1732927155805,0.06059606,97189.0,97188.0,0.0038664]
[1732927156020,0.06059606,97189.0,97188.0,0.0008664]
[1732927156234,0.16448806,97189.0,97188.0,0.0058664]
[1732927157378,0.17569951,97189.0,97188.0,0.0058664]
[1732927157607,0.17569951,97189.0,97188.0,0.0038664]
[1732927158053,0.14046571,97189.0,97188.0,0.0068664]
[1732927158276,0.14274253,97189.0,97188.0,0.0068664]
[1732927158495,0.13317864,97189.0,97188.0,0.0068664]
[1732927160950,0.14313571,97189.0,97188.0,0.0068664]
[1732927161408,0.14085889,97189.0,97188.0,0.0068664]
[1732927161609,0.1448684,97189.0,97188.0,0.0068664]
[1732927162111,0.14259169,97189.0,97188.0,0.0068664]
[1732927162326,0.1448684,97189.0,97188.0,0.0068664]
[1732927162790,0.1448684,97189.0,97176.0,0.000991]
[1732927162791,0.40046207,97177.0,97176.0,0.000991]
[1732927163056,0.411598,97182.0,97173.0,0.0008669]
[1732927163057,0.112908,97174.0,97173.0,0.0008669]
[1732927163259,0.102908,97174.0,97173.0,0.00092679]
[1732927163473,0.11514191,97174.0,97173.0,0.00092679]
[1732927163724,0.10707584,97174.0,97173.0,0.103772]
[1732927164660,0.10707584,97174.0,97173.0,0.206681]
[1732927164661,0.00416784,97174.0,97173.0,0.206681]
[1732927164893,0.00416784,97174.0,97173.0,0.283481]
[1732927165150,0.102896,97186.0,97181.0,0.1029]
[1732927165395,0.102895,97186.0,97182.0,0.10284521]
[1732927165617,0.00416694,97185.0,97182.0,0.10284521]
[1732927166083,0.00416694,97185.0,97184.0,0.102897]
[1732927166309,0.00416694,97185.0,97184.0,0.25264221]
[1732927166543,0.0017328,97189.0,97188.0,0.102893]
[1732927166774,0.0017328,97189.0,97188.0,0.10284521]
[1732927167494,0.00589986,97189.0,97188.0,0.10284521]
[1732927167709,0.00589986,97189.0,97184.0,0.149797]
[1732927167710,0.102896,97185.0,97184.0,0.001]
[1732927167920,0.102896,97185.0,97184.0,0.10284521]
[1732927168357,0.10706545,97185.0,97184.0,0.10284521]
[1732927168839,0.10706545,97185.0,97184.0,0.10584521]
[1732927170260,0.16434202,97185.0,97184.0,0.003]
[1732927170491,0.16534202,97185.0,97184.0,0.007]
[1732927170936,0.17529924,97185.0,97184.0,0.007]
[1732927171152,0.102908,97174.0,97173.0,0.00092679]
[1732927171411,0.112908,97174.0,97173.0,0.103772]
[1732927171656,0.11707351,97174.0,97173.0,0.103772]
[1732927173476,0.11807351,97174.0,97173.0,0.103772]
[1732927173688,0.11907351,97174.0,97173.0,0.103772]
[1732927173909,0.11897514,97174.0,97173.0,0.103772]
[1732927174135,0.11797514,97174.0,97173.0,0.103772]
[1732927174351,0.11697514,97174.0,97173.0,0.103772]
[1732927174580,0.11697514,97174.0,97173.0,0.106772]
[1732927175044,0.11697514,97174.0,97173.0,0.105772]
[1732927175917,0.10697514,97174.0,97173.0,0.105772]
[1732927176145,0.01416551,97174.0,97173.0,0.103772]
[1732927176381,0.00416551,97174.0,97173.0,0.206681]